[Event "Late-Titled-Tuesday-Blitz-July-09-2024"]
[Site "Chess.com"]
[Date "2024.07.09"]
[Round "2"]
[White "SimplyDevina"]
[Black "WildTricks"]
[Result "0-1"]
[WhiteElo "2362"]
[BlackElo "2710"]
[TimeControl "180+1"]
[EndTime "14:17:31 PDT"]
[Termination "WildTricks won by resignation"]

1. d4 {[%clk 0:03:00.9]} 1... Nf6 {[%clk 0:02:59.6]} 2. c4 {[%clk 0:02:59]} 2...
e6 {[%clk 0:02:59.9]} 3. Nc3 {[%clk 0:02:58]} 3... Bb4 {[%clk 0:02:59.3]} 4. Nf3
{[%clk 0:02:55.4]} 4... b6 {[%clk 0:02:57.6]} 5. Qc2 {[%clk 0:02:45.9]} 5... Bb7
{[%clk 0:02:55.2]} 6. Bg5 {[%clk 0:02:36.7]} 6... h6 {[%clk 0:02:53.7]} 7. Bxf6
{[%clk 0:02:32.6]} 7... Qxf6 {[%clk 0:02:52.7]} 8. e4 {[%clk 0:02:32.7]} 8...
Nc6 {[%clk 0:02:36.3]} 9. Rd1 {[%clk 0:02:23.1]} 9... e5 {[%clk 0:02:32]} 10. d5
{[%clk 0:01:39]} 10... Nd4 {[%clk 0:02:31]} 11. Qd3 {[%clk 0:01:33.6]} 11...
Nxf3+ {[%clk 0:02:25.5]} 12. gxf3 {[%clk 0:01:27.3]} 12... O-O {[%clk 0:02:14]}
13. a3 {[%clk 0:01:20.6]} 13... Bc5 {[%clk 0:02:09.6]} 14. b4 {[%clk 0:01:13.7]}
14... Be7 {[%clk 0:02:04.2]} 15. Bh3 {[%clk 0:00:59.1]} 15... a5 {[%clk
0:02:02.6]} 16. b5 {[%clk 0:00:36.4]} 16... Bxa3 {[%clk 0:01:55.2]} 17. Bxd7
{[%clk 0:00:36.9]} 17... Bc5 {[%clk 0:01:48.1]} 18. Rg1 {[%clk 0:00:31.2]} 18...
a4 {[%clk 0:01:44]} 19. Ke2 {[%clk 0:00:29.2]} 19... a3 {[%clk 0:01:37.4]} 20.
Na2 {[%clk 0:00:29.3]} 20... Rfd8 {[%clk 0:01:33]} 21. Bf5 {[%clk 0:00:28.7]}
21... c6 {[%clk 0:01:29.2]} 22. Rg2 {[%clk 0:00:21.2]} 22... cxb5 {[%clk
0:01:20.5]} 23. cxb5 {[%clk 0:00:21.4]} 23... Kh8 {[%clk 0:01:08.9]} 24. Rdg1
{[%clk 0:00:21.5]} 24... Bf8 {[%clk 0:01:04.5]} 25. Qd2 {[%clk 0:00:17.4]} 25...
Bxd5 {[%clk 0:01:01.7]} 26. exd5 {[%clk 0:00:12.6]} 26... Qxf5 {[%clk 0:01:01]}
27. Nb4 {[%clk 0:00:08.8]} 27... e4 {[%clk 0:00:53.7]} 28. f4 {[%clk 0:00:06.4]}
28... Qh5+ {[%clk 0:00:48.2]} 29. Ke1 {[%clk 0:00:03.3]} 29... a2 {[%clk
0:00:37]} 30. Nxa2 {[%clk 0:00:03.1]} 30... Rxa2 {[%clk 0:00:37.1]} 31. Qxa2
{[%clk 0:00:01.4]} 31... Bb4+ {[%clk 0:00:37.6]} 32. Qd2 {[%clk 0:00:01.3]}
32... Bxd2+ {[%clk 0:00:37]} 33. Kxd2 {[%clk 0:00:02.2]} 33... Qxd5+ {[%clk
0:00:36.8]} 0-1

[Event "Late-Titled-Tuesday-Blitz-July-09-2024"]
[Site "Chess.com"]
[Date "2024.07.09"]
[Round "2"]
[White "FloMasterAAK"]
[Black "Andreikka"]
[Result "1/2-1/2"]
[WhiteElo "2645"]
[BlackElo "3003"]
[TimeControl "180+1"]
[EndTime "14:17:32 PDT"]
[Termination "Game drawn by repetition"]

1. e4 {[%clk 0:03:00.9]} 1... e5 {[%clk 0:02:57.7]} 2. Nf3 {[%clk 0:03:01]} 2...
Nc6 {[%clk 0:02:57.4]} 3. d4 {[%clk 0:03:01.4]} 3... exd4 {[%clk 0:02:57]} 4.
Nxd4 {[%clk 0:03:02.2]} 4... Nf6 {[%clk 0:02:56.8]} 5. Nxc6 {[%clk 0:03:02.2]}
5... bxc6 {[%clk 0:02:56.8]} 6. e5 {[%clk 0:03:02.7]} 6... Qe7 {[%clk 0:02:57]}
7. Qe2 {[%clk 0:03:03.4]} 7... Nd5 {[%clk 0:02:57.2]} 8. h4 {[%clk 0:03:04.1]}
8... d6 {[%clk 0:02:53.2]} 9. c4 {[%clk 0:03:03.9]} 9... Nb6 {[%clk 0:02:52.5]}
10. exd6 {[%clk 0:03:04.4]} 10... cxd6 {[%clk 0:02:51.4]} 11. Be3 {[%clk
0:03:04.2]} 11... d5 {[%clk 0:02:49.8]} 12. Nd2 {[%clk 0:03:00.1]} 12... dxc4
{[%clk 0:02:43.8]} 13. g3 {[%clk 0:02:55.1]} 13... Be6 {[%clk 0:02:26.8]} 14.
Bg2 {[%clk 0:02:48]} 14... Qd7 {[%clk 0:02:22.5]} 15. O-O {[%clk 0:02:44.8]}
15... Be7 {[%clk 0:02:22.3]} 16. Bxb6 {[%clk 0:02:34.9]} 16... axb6 {[%clk
0:02:21.5]} 17. Nxc4 {[%clk 0:02:35.3]} 17... Qc7 {[%clk 0:02:08]} 18. Ne5
{[%clk 0:02:32.3]} 18... O-O {[%clk 0:02:05.5]} 19. Nxc6 {[%clk 0:02:31.2]}
19... Bf6 {[%clk 0:02:01.9]} 20. a3 {[%clk 0:02:18.2]} 20... Rfe8 {[%clk
0:01:51.6]} 21. Rac1 {[%clk 0:02:10.9]} 21... Rac8 {[%clk 0:01:33]} 22. b4
{[%clk 0:01:35.4]} 22... h6 {[%clk 0:01:16.4]} 23. Rfe1 {[%clk 0:01:19]} 23...
Qd7 {[%clk 0:01:00.4]} 24. Red1 {[%clk 0:01:15.7]} 24... Qc7 {[%clk 0:00:57.5]}
25. Qd2 {[%clk 0:01:10.8]} 25... Bg4 {[%clk 0:00:40.9]} 26. Re1 {[%clk
0:01:04.7]} 26... Be6 {[%clk 0:00:38]} 27. Red1 {[%clk 0:00:58.4]} 27... Bg4
{[%clk 0:00:37.1]} 28. Re1 {[%clk 0:00:58.4]} 28... Be6 {[%clk 0:00:35.9]} 29.
a4 {[%clk 0:00:50.3]} 29... Qb7 {[%clk 0:00:23.7]} 30. b5 {[%clk 0:00:45]} 30...
Qc7 {[%clk 0:00:21.9]} 31. Red1 {[%clk 0:00:34.7]} 31... Bg4 {[%clk 0:00:20.4]}
32. Re1 {[%clk 0:00:34.9]} 32... Be6 {[%clk 0:00:20.9]} 33. Red1 {[%clk
0:00:35]} 33... Bg4 {[%clk 0:00:20.2]} 34. Re1 {[%clk 0:00:35.4]} 34... Be6
{[%clk 0:00:20.9]} 1/2-1/2

[Event "Late-Titled-Tuesday-Blitz-July-09-2024"]
[Site "Chess.com"]
[Date "2024.07.09"]
[Round "2"]
[White "Gzucaritas"]
[Black "Lector118"]
[Result "0-1"]
[WhiteElo "2069"]
[BlackElo "2674"]
[TimeControl "180+1"]
[EndTime "14:17:33 PDT"]
[Termination "Lector118 won by checkmate"]

1. e4 {[%clk 0:03:00.9]} 1... c5 {[%clk 0:02:59.3]} 2. Nf3 {[%clk 0:03:00.2]}
2... Nc6 {[%clk 0:02:59.8]} 3. Bb5 {[%clk 0:03:00.3]} 3... Na5 {[%clk
0:02:59.8]} 4. O-O {[%clk 0:02:48.3]} 4... a6 {[%clk 0:03:00.1]} 5. Be2 {[%clk
0:02:47.4]} 5... e6 {[%clk 0:03:00.6]} 6. Nc3 {[%clk 0:02:44.5]} 6... d6 {[%clk
0:02:58.7]} 7. d4 {[%clk 0:02:43.7]} 7... cxd4 {[%clk 0:02:59.6]} 8. Nxd4 {[%clk
0:02:43.2]} 8... Nf6 {[%clk 0:02:59.2]} 9. Be3 {[%clk 0:02:41.5]} 9... Qc7
{[%clk 0:02:59.4]} 10. Qd3 {[%clk 0:02:24.5]} 10... Be7 {[%clk 0:02:57.6]} 11.
b4 {[%clk 0:02:22.6]} 11... Nc6 {[%clk 0:02:56.6]} 12. a3 {[%clk 0:02:22.3]}
12... Ne5 {[%clk 0:02:54.1]} 13. Qd2 {[%clk 0:02:18.8]} 13... Nc4 {[%clk
0:02:52]} 14. Bxc4 {[%clk 0:02:13.8]} 14... Qxc4 {[%clk 0:02:52.9]} 15. f3
{[%clk 0:02:13.8]} 15... O-O {[%clk 0:02:52.2]} 16. Na4 {[%clk 0:02:07.2]} 16...
Qc7 {[%clk 0:02:50.4]} 17. c4 {[%clk 0:02:04.4]} 17... Bd7 {[%clk 0:02:47.6]}
18. Nb2 {[%clk 0:02:01.1]} 18... Rfe8 {[%clk 0:02:35.3]} 19. Rac1 {[%clk
0:01:58]} 19... Rad8 {[%clk 0:02:32.8]} 20. Rfd1 {[%clk 0:01:55.6]} 20... Qb8
{[%clk 0:02:32.6]} 21. Qf2 {[%clk 0:01:54]} 21... Bf8 {[%clk 0:02:19.8]} 22. Nd3
{[%clk 0:01:52.1]} 22... Rc8 {[%clk 0:02:02.5]} 23. Nb3 {[%clk 0:01:40.4]} 23...
Bc6 {[%clk 0:01:55.2]} 24. c5 {[%clk 0:01:38.7]} 24... dxc5 {[%clk 0:01:45.3]}
25. Ndxc5 {[%clk 0:01:37.5]} 25... Red8 {[%clk 0:01:38]} 26. Qe1 {[%clk
0:01:32.7]} 26... Qa8 {[%clk 0:01:31.1]} 27. Na5 {[%clk 0:00:58.5]} 27... h6
{[%clk 0:01:15.2]} 28. Rxd8 {[%clk 0:00:55.1]} 28... Rxd8 {[%clk 0:01:14.3]} 29.
Nxc6 {[%clk 0:00:55.4]} 29... bxc6 {[%clk 0:01:14.7]} 30. Qe2 {[%clk 0:00:54.8]}
30... a5 {[%clk 0:01:14.1]} 31. Qc4 {[%clk 0:00:45.1]} 31... axb4 {[%clk
0:01:13.2]} 32. axb4 {[%clk 0:00:44.6]} 32... Qa3 {[%clk 0:01:12.2]} 33. Qc3
{[%clk 0:00:36.2]} 33... Rd1+ {[%clk 0:01:02.4]} 34. Kf2 {[%clk 0:00:34.2]}
34... Qa2+ {[%clk 0:00:58.7]} 35. Rc2 {[%clk 0:00:26.5]} 35... Qb1 {[%clk
0:00:55.1]} 36. Rd2 {[%clk 0:00:21.5]} 36... Rf1+ {[%clk 0:00:54.1]} 37. Kg3
{[%clk 0:00:21.8]} 37... Qe1+ {[%clk 0:00:52.5]} 38. Kh3 {[%clk 0:00:20.5]}
38... g5 {[%clk 0:00:45.5]} 39. Qxf6 {[%clk 0:00:14.5]} 39... Qh4# {[%clk
0:00:44.6]} 0-1

[Event "Late-Titled-Tuesday-Blitz-July-09-2024"]
[Site "Chess.com"]
[Date "2024.07.09"]
[Round "2"]
[White "domithebest"]
[Black "Fraler15"]
[Result "1/2-1/2"]
[WhiteElo "2534"]
[BlackElo "2343"]
[TimeControl "180+1"]
[EndTime "14:17:33 PDT"]
[Termination "Game drawn by repetition"]

1. d4 {[%clk 0:02:50.2]} 1... d5 {[%clk 0:02:59.1]} 2. Bf4 {[%clk 0:02:50.1]}
2... Nf6 {[%clk 0:02:56.4]} 3. e3 {[%clk 0:02:50.5]} 3... c5 {[%clk 0:02:55.9]}
4. c3 {[%clk 0:02:50.7]} 4... Nc6 {[%clk 0:02:55.1]} 5. Nd2 {[%clk 0:02:51.2]}
5... cxd4 {[%clk 0:02:53.3]} 6. exd4 {[%clk 0:02:50.8]} 6... Bf5 {[%clk
0:02:49.6]} 7. Ngf3 {[%clk 0:02:51.2]} 7... e6 {[%clk 0:02:48.7]} 8. Qb3 {[%clk
0:02:51.1]} 8... Qb6 {[%clk 0:02:46.2]} 9. Qxb6 {[%clk 0:02:50.8]} 9... axb6
{[%clk 0:02:45.8]} 10. a3 {[%clk 0:02:51.7]} 10... h6 {[%clk 0:02:40.7]} 11. Bb5
{[%clk 0:02:51.1]} 11... Nd7 {[%clk 0:02:39.6]} 12. Ne5 {[%clk 0:02:49.1]} 12...
Ndxe5 {[%clk 0:02:38.5]} 13. Bxe5 {[%clk 0:02:49.6]} 13... f6 {[%clk 0:02:38.2]}
14. Bg3 {[%clk 0:02:43.8]} 14... Kd7 {[%clk 0:02:37.4]} 15. O-O {[%clk 0:02:43]}
15... Bd6 {[%clk 0:02:35.8]} 16. Bxd6 {[%clk 0:02:41.4]} 16... Kxd6 {[%clk
0:02:35.6]} 17. f4 {[%clk 0:02:41.8]} 17... g5 {[%clk 0:02:28.9]} 18. Rae1
{[%clk 0:02:36.1]} 18... g4 {[%clk 0:02:27.5]} 19. Re3 {[%clk 0:02:32.7]} 19...
h5 {[%clk 0:02:26]} 20. Bd3 {[%clk 0:02:25.1]} 20... Bxd3 {[%clk 0:02:25.1]} 21.
Rxd3 {[%clk 0:02:26]} 21... f5 {[%clk 0:02:21.3]} 22. Re3 {[%clk 0:02:21.8]}
22... Rae8 {[%clk 0:02:12.4]} 23. Nb3 {[%clk 0:02:22.3]} 23... Na5 {[%clk
0:02:10.7]} 24. Nxa5 {[%clk 0:02:15.9]} 24... bxa5 {[%clk 0:02:10.3]} 25. Kf2
{[%clk 0:02:13.3]} 25... b5 {[%clk 0:02:09.3]} 26. Kg3 {[%clk 0:02:09.6]} 26...
h4+ {[%clk 0:02:08.5]} 27. Kf2 {[%clk 0:02:10.2]} 27... Rh7 {[%clk 0:02:07.8]}
28. Ke2 {[%clk 0:02:10.2]} 28... Rc7 {[%clk 0:02:05.9]} 29. Kd3 {[%clk
0:02:10.4]} 29... b4 {[%clk 0:01:57.9]} 30. axb4 {[%clk 0:02:00.4]} 30... axb4
{[%clk 0:01:57.4]} 31. Ra1 {[%clk 0:02:01]} 31... bxc3 {[%clk 0:01:56.7]} 32.
Ra6+ {[%clk 0:01:57.2]} 32... Rc6 {[%clk 0:01:50.4]} 33. Rxc6+ {[%clk
0:01:55.9]} 33... Kxc6 {[%clk 0:01:50.2]} 34. Kxc3 {[%clk 0:01:56.8]} 34... Kd6
{[%clk 0:01:45.6]} 35. b3 {[%clk 0:01:55]} 35... Rc8+ {[%clk 0:01:43]} 36. Kb2
{[%clk 0:01:55.5]} 36... Rb8 {[%clk 0:01:42]} 37. g3 {[%clk 0:01:49.3]} 37... h3
{[%clk 0:01:41]} 38. Re1 {[%clk 0:01:45.6]} 38... Rb7 {[%clk 0:01:29.2]} 39. Ra1
{[%clk 0:01:43.6]} 39... Kd7 {[%clk 0:01:16.6]} 40. Ra4 {[%clk 0:01:40.2]} 40...
Rc7 {[%clk 0:01:04.5]} 41. Rb4 {[%clk 0:01:38.4]} 41... Rc6 {[%clk 0:01:00.9]}
42. Rb7+ {[%clk 0:01:38.2]} 42... Kd6 {[%clk 0:01:00.5]} 43. Rb5 {[%clk
0:01:29.6]} 43... Rc8 {[%clk 0:00:58.9]} 44. Rb6+ {[%clk 0:01:20.3]} 44... Kd7
{[%clk 0:00:58.2]} 45. Ra6 {[%clk 0:01:20]} 45... Rc7 {[%clk 0:00:55.3]} 46. Ra1
{[%clk 0:01:20]} 46... Kd6 {[%clk 0:00:52.6]} 47. Rc1 {[%clk 0:01:19.8]} 47...
Rb7 {[%clk 0:00:52.2]} 48. Rc5 {[%clk 0:01:18.9]} 48... Ra7 {[%clk 0:00:46.1]}
49. b4 {[%clk 0:01:16.8]} 49... Ra4 {[%clk 0:00:45.3]} 50. Kb3 {[%clk
0:01:16.1]} 50... Ra1 {[%clk 0:00:45.1]} 51. b5 {[%clk 0:01:16.7]} 51... Rb1+
{[%clk 0:00:42.9]} 52. Ka4 {[%clk 0:01:16.4]} 52... Ra1+ {[%clk 0:00:34.1]} 53.
Kb4 {[%clk 0:01:16]} 53... Rb1+ {[%clk 0:00:34.1]} 54. Ka5 {[%clk 0:01:16.1]}
54... Ra1+ {[%clk 0:00:33.6]} 55. Kb6 {[%clk 0:01:16.2]} 55... Ra2 {[%clk
0:00:34.2]} 56. Rc6+ {[%clk 0:01:16]} 56... Kd7 {[%clk 0:00:33.9]} 57. Rc7+
{[%clk 0:01:13.2]} 57... Kd6 {[%clk 0:00:33.6]} 58. Rc6+ {[%clk 0:01:12.7]}
58... Kd7 {[%clk 0:00:33.6]} 59. Rc7+ {[%clk 0:01:08.6]} 59... Kd6 {[%clk
0:00:33.6]} 60. Rc6+ {[%clk 0:01:09.1]} 1/2-1/2

[Event "Late-Titled-Tuesday-Blitz-July-09-2024"]
[Site "Chess.com"]
[Date "2024.07.09"]
[Round "2"]
[White "tgpgoat"]
[Black "HouseOfDurin"]
[Result "1-0"]
[WhiteElo "2508"]
[BlackElo "2284"]
[TimeControl "180+1"]
[EndTime "14:17:37 PDT"]
[Termination "tgpgoat won on time"]

1. Nf3 {[%clk 0:03:00.9]} 1... c5 {[%clk 0:02:58.6]} 2. b3 {[%clk 0:03:01.8]}
2... Nc6 {[%clk 0:02:58.9]} 3. Bb2 {[%clk 0:03:01.7]} 3... d6 {[%clk 0:02:59.5]}
4. e3 {[%clk 0:03:01.8]} 4... e5 {[%clk 0:02:59.3]} 5. Bb5 {[%clk 0:02:58.3]}
5... Bd7 {[%clk 0:02:58.3]} 6. d4 {[%clk 0:02:57.8]} 6... cxd4 {[%clk
0:02:56.9]} 7. exd4 {[%clk 0:02:57.7]} 7... e4 {[%clk 0:02:57.3]} 8. Nfd2 {[%clk
0:02:57]} 8... d5 {[%clk 0:02:56.6]} 9. O-O {[%clk 0:02:54.6]} 9... Nf6 {[%clk
0:02:54.4]} 10. c4 {[%clk 0:02:54.2]} 10... a6 {[%clk 0:02:53.6]} 11. cxd5
{[%clk 0:02:54]} 11... axb5 {[%clk 0:02:52.9]} 12. dxc6 {[%clk 0:02:54.1]} 12...
Bxc6 {[%clk 0:02:53.6]} 13. Nc3 {[%clk 0:02:52.4]} 13... Qxd4 {[%clk 0:02:46.2]}
14. Ndxe4 {[%clk 0:02:37.3]} 14... Qxd1 {[%clk 0:02:29.4]} 15. Nxf6+ {[%clk
0:02:36.2]} 15... gxf6 {[%clk 0:02:29.8]} 16. Raxd1 {[%clk 0:02:36.1]} 16... Ba3
{[%clk 0:02:11.6]} 17. Ba1 {[%clk 0:02:14.6]} 17... Kf8 {[%clk 0:02:07.7]} 18.
Ne2 {[%clk 0:02:09.5]} 18... Kg7 {[%clk 0:01:48.6]} 19. Ng3 {[%clk 0:02:08.7]}
19... Kg6 {[%clk 0:01:32.3]} 20. h4 {[%clk 0:02:01.7]} 20... h5 {[%clk
0:01:31.4]} 21. Rfe1 {[%clk 0:01:44.6]} 21... Rhe8 {[%clk 0:01:26.8]} 22. Ne2
{[%clk 0:01:34.5]} 22... Bb4 {[%clk 0:01:14.1]} 23. Nf4+ {[%clk 0:01:33.6]}
23... Kf5 {[%clk 0:00:44.8]} 24. Rxe8 {[%clk 0:01:30.3]} 24... Bxe8 {[%clk
0:00:45.1]} 25. Nxh5 {[%clk 0:01:29.6]} 25... Rxa2 {[%clk 0:00:44.8]} 26. Bxf6
{[%clk 0:01:11.9]} 26... Kg6 {[%clk 0:00:19]} 27. g4 {[%clk 0:01:09.7]} 27...
Bc5 {[%clk 0:00:11.9]} 28. Bd4 {[%clk 0:01:09.1]} 28... b6 {[%clk 0:00:09.5]}
29. Nf4+ {[%clk 0:01:05.5]} 29... Kh7 {[%clk 0:00:09.2]} 30. Nd5 {[%clk
0:01:03.5]} 30... Bc6 {[%clk 0:00:08.3]} 31. Nxb6 {[%clk 0:01:02.2]} 31... Bxd4
{[%clk 0:00:02.1]} 32. Rxd4 {[%clk 0:01:03.1]} 32... Ra1+ {[%clk 0:00:02.3]} 33.
Kh2 {[%clk 0:01:02.7]} 33... Rh1+ {[%clk 0:00:02.8]} 34. Kg3 {[%clk 0:01:03.2]}
34... Rg1+ {[%clk 0:00:03.3]} 35. Kf4 {[%clk 0:01:02.5]} 35... Rf1 {[%clk
0:00:03.3]} 36. Rd2 {[%clk 0:01:02.2]} 36... Rg1 {[%clk 0:00:02]} 37. Nc8 {[%clk
0:01:00]} 37... Rb1 {[%clk 0:00:01.7]} 38. Ne7 {[%clk 0:00:55.5]} 38... Bg2
{[%clk 0:00:01.5]} 39. Rd3 {[%clk 0:00:53.5]} 39... Bf1 {[%clk 0:00:01]} 40. Re3
{[%clk 0:00:52.8]} 40... Rb2 {[%clk 0:00:01.1]} 41. f3 {[%clk 0:00:52.2]} 1-0

[Event "Late-Titled-Tuesday-Blitz-July-09-2024"]
[Site "Chess.com"]
[Date "2024.07.09"]
[Round "2"]
[White "Sondremelaa"]
[Black "temus_galaktionov"]
[Result "0-1"]
[WhiteElo "2552"]
[BlackElo "2841"]
[TimeControl "180+1"]
[EndTime "14:17:41 PDT"]
[Termination "temus_galaktionov won by resignation"]

1. d4 {[%clk 0:03:00.9]} 1... c6 {[%clk 0:03:00.9]} 2. Bf4 {[%clk 0:02:58.4]}
2... g6 {[%clk 0:03:01.8]} 3. e3 {[%clk 0:02:53.3]} 3... Bg7 {[%clk 0:03:01.8]}
4. Nf3 {[%clk 0:02:53.1]} 4... d6 {[%clk 0:03:01.6]} 5. h3 {[%clk 0:02:51.1]}
5... Nd7 {[%clk 0:03:02.1]} 6. Be2 {[%clk 0:02:50.8]} 6... e5 {[%clk 0:03:02.7]}
7. Bh2 {[%clk 0:02:44.5]} 7... Qe7 {[%clk 0:03:02.8]} 8. O-O {[%clk 0:02:44.1]}
8... Ngf6 {[%clk 0:03:02.8]} 9. c4 {[%clk 0:02:42]} 9... O-O {[%clk 0:03:02.2]}
10. Nc3 {[%clk 0:02:37.4]} 10... Re8 {[%clk 0:03:00.1]} 11. c5 {[%clk
0:02:31.3]} 11... dxc5 {[%clk 0:02:42]} 12. dxe5 {[%clk 0:02:31.2]} 12... Nd5
{[%clk 0:02:42.3]} 13. Nxd5 {[%clk 0:02:30.5]} 13... cxd5 {[%clk 0:02:43.2]} 14.
Qxd5 {[%clk 0:02:30.4]} 14... Nxe5 {[%clk 0:02:43.9]} 15. Rac1 {[%clk
0:02:17.6]} 15... Nxf3+ {[%clk 0:02:35.2]} 16. Bxf3 {[%clk 0:02:17.7]} 16...
Bxb2 {[%clk 0:02:34.5]} 17. Rc2 {[%clk 0:02:17.9]} 17... Bg7 {[%clk 0:02:27.2]}
18. Qxc5 {[%clk 0:02:17.2]} 18... Bf5 {[%clk 0:02:12.4]} 19. Qxe7 {[%clk
0:01:47.7]} 19... Rxe7 {[%clk 0:02:13.3]} 20. Rc5 {[%clk 0:01:36.9]} 20... Rd8
{[%clk 0:02:09.8]} 21. Rfc1 {[%clk 0:01:33.1]} 21... h5 {[%clk 0:02:07.3]} 22.
Bf4 {[%clk 0:01:17.5]} 22... b6 {[%clk 0:01:53.9]} 23. Rc7 {[%clk 0:01:15.3]}
23... Rxc7 {[%clk 0:01:53.5]} 24. Rxc7 {[%clk 0:01:14.8]} 24... Rd7 {[%clk
0:01:52.8]} 25. Rxd7 {[%clk 0:01:09.8]} 25... Bxd7 {[%clk 0:01:53.7]} 26. Bb8
{[%clk 0:01:09.5]} 26... a6 {[%clk 0:01:50.2]} 27. Bc7 {[%clk 0:01:03.8]} 27...
Be6 {[%clk 0:01:45.1]} 28. Bb7 {[%clk 0:00:59.7]} 28... a5 {[%clk 0:01:33.7]}
29. a3 {[%clk 0:00:17.8]} 29... Bf8 {[%clk 0:01:29.8]} 30. Bxb6 {[%clk
0:00:11.8]} 30... a4 {[%clk 0:01:28.8]} 31. Bd4 {[%clk 0:00:08.8]} 31... Bxa3
{[%clk 0:01:27.8]} 32. Kf1 {[%clk 0:00:09.5]} 32... Bc4+ {[%clk 0:01:24.3]} 33.
Ke1 {[%clk 0:00:09.8]} 33... Bb4+ {[%clk 0:01:24.1]} 34. Kd1 {[%clk 0:00:10.4]}
34... Kf8 {[%clk 0:01:23.3]} 35. Kc2 {[%clk 0:00:10.5]} 35... Ke7 {[%clk
0:01:22.5]} 36. Bc6 {[%clk 0:00:10.2]} 36... a3 {[%clk 0:01:21.7]} 37. Ba4
{[%clk 0:00:06.7]} 37... Bf1 {[%clk 0:01:15.1]} 38. Bc6 {[%clk 0:00:03.7]} 38...
Kd6 {[%clk 0:01:14.7]} 39. Bf3 {[%clk 0:00:03.3]} 39... Bc4 {[%clk 0:01:14]} 40.
Kb1 {[%clk 0:00:03.8]} 40... Be1 {[%clk 0:01:10.5]} 41. e4 {[%clk 0:00:03.2]}
41... Ke6 {[%clk 0:01:03.5]} 42. g3 {[%clk 0:00:03.5]} 42... Bb4 {[%clk
0:01:00]} 43. Kc2 {[%clk 0:00:03.7]} 43... Bd6 {[%clk 0:00:59.1]} 44. Be2 {[%clk
0:00:03.8]} 44... Bxe2 {[%clk 0:00:57.7]} 0-1

[Event "Late-Titled-Tuesday-Blitz-July-09-2024"]
[Site "Chess.com"]
[Date "2024.07.09"]
[Round "2"]
[White "betta2004"]
[Black "SandwichOSaumon"]
[Result "1-0"]
[WhiteElo "2516"]
[BlackElo "2302"]
[TimeControl "180+1"]
[EndTime "14:17:41 PDT"]
[Termination "betta2004 won on time"]

1. d4 {[%clk 0:02:45.2]} 1... Nf6 {[%clk 0:02:57.8]} 2. Nf3 {[%clk 0:02:43]}
2... e6 {[%clk 0:02:56]} 3. b3 {[%clk 0:02:39.8]} 3... b6 {[%clk 0:02:43.5]} 4.
Bb2 {[%clk 0:02:25.1]} 4... Bb7 {[%clk 0:02:44.4]} 5. e3 {[%clk 0:02:23.5]} 5...
d6 {[%clk 0:02:43]} 6. Nbd2 {[%clk 0:02:23.4]} 6... Nbd7 {[%clk 0:02:43.5]} 7.
Bd3 {[%clk 0:02:22.1]} 7... Be7 {[%clk 0:02:44.4]} 8. O-O {[%clk 0:02:21.6]}
8... c5 {[%clk 0:02:39.8]} 9. c4 {[%clk 0:02:22]} 9... Rc8 {[%clk 0:02:38.5]}
10. Qe2 {[%clk 0:02:20.1]} 10... O-O {[%clk 0:02:32.8]} 11. e4 {[%clk 0:02:13]}
11... cxd4 {[%clk 0:02:29.5]} 12. Nxd4 {[%clk 0:02:13.9]} 12... Nc5 {[%clk
0:02:10.9]} 13. Bc2 {[%clk 0:02:13.1]} 13... d5 {[%clk 0:01:56.6]} 14. e5 {[%clk
0:02:11.2]} 14... Nfe4 {[%clk 0:01:52]} 15. Nxe4 {[%clk 0:02:09.9]} 15... Nxe4
{[%clk 0:01:48.2]} 16. Bxe4 {[%clk 0:02:10.1]} 16... dxe4 {[%clk 0:01:49]} 17.
Rfd1 {[%clk 0:02:10.2]} 17... Qc7 {[%clk 0:01:47.8]} 18. Nb5 {[%clk 0:02:10.7]}
18... Qb8 {[%clk 0:01:45]} 19. Nd6 {[%clk 0:02:10.3]} 19... Bxd6 {[%clk
0:01:43.1]} 20. exd6 {[%clk 0:02:11.2]} 20... Rcd8 {[%clk 0:01:40.6]} 21. Qg4
{[%clk 0:02:09.4]} 21... g6 {[%clk 0:01:32.7]} 22. Qg5 {[%clk 0:02:05.4]} 22...
f6 {[%clk 0:01:11.6]} 23. Bxf6 {[%clk 0:02:03.9]} 23... Rxd6 {[%clk 0:01:12.3]}
24. Rxd6 {[%clk 0:02:02]} 24... Qxd6 {[%clk 0:01:11.1]} 25. Be7 {[%clk
0:02:02.4]} 25... Qd4 {[%clk 0:01:09.7]} 26. Rf1 {[%clk 0:01:54.4]} 26... Rf5
{[%clk 0:00:48]} 27. Qg3 {[%clk 0:01:49.9]} 27... Qd7 {[%clk 0:00:41.1]} 28. Bb4
{[%clk 0:01:46]} 28... Qf7 {[%clk 0:00:32.1]} 29. Qb8+ {[%clk 0:01:36.4]} 29...
Kg7 {[%clk 0:00:27.6]} 30. Bc3+ {[%clk 0:01:36.9]} 30... Kh6 {[%clk 0:00:26.1]}
31. Qg3 {[%clk 0:01:34.3]} 31... g5 {[%clk 0:00:19.2]} 32. Re1 {[%clk
0:01:25.2]} 32... Kg6 {[%clk 0:00:18.4]} 33. h4 {[%clk 0:01:24.2]} 33... h5
{[%clk 0:00:16.9]} 34. Rd1 {[%clk 0:01:08.5]} 34... g4 {[%clk 0:00:11.2]} 35.
Rd8 {[%clk 0:01:04.8]} 35... Qe7 {[%clk 0:00:05.9]} 36. Rg8+ {[%clk 0:01:03]}
36... Kh7 {[%clk 0:00:03.2]} 37. Rg7+ {[%clk 0:00:57.8]} 37... Qxg7 {[%clk
0:00:03.8]} 38. Bxg7 {[%clk 0:00:58.5]} 38... Kxg7 {[%clk 0:00:04.5]} 39. Qc7+
{[%clk 0:00:59.1]} 39... Rf7 {[%clk 0:00:03.8]} 40. Qe5+ {[%clk 0:00:59.6]}
40... Kg6 {[%clk 0:00:02.6]} 41. Qxe6+ {[%clk 0:00:59.9]} 41... Rf6 {[%clk
0:00:03]} 42. Qe8+ {[%clk 0:00:59.7]} 42... Kf5 {[%clk 0:00:02.7]} 43. Qd7+
{[%clk 0:00:59.7]} 43... Kf4 {[%clk 0:00:02.2]} 44. Qxb7 {[%clk 0:01:00.6]}
44... e3 {[%clk 0:00:02.4]} 45. Qc7+ {[%clk 0:00:59.9]} 45... Ke4 {[%clk
0:00:02.2]} 46. Qe7+ {[%clk 0:00:59.9]} 1-0